[Event "FIDE WCCC Open-08 2024"]
[Site "Montesilvano"]
[Date "2024.11.18"]
[Round "3.23"]
[White "Nguyen Thanh San"]
[Black "Ayaan Phutane"]
[Result "0-1"]
[ECO "D02"]
[WhiteElo "1493"]
[BlackElo "1796"]
[PlyCount "103"]
[EventDate "2024.11.18"]
[EventType "swiss"]
[EventCountry "ITA"]
[TimeControl "5400+30"]

1. d4 {[%emt 0:07:02]} Nf6 {[%emt 0:00:36]} 2. Bf4 {[%emt 0:00:39]} e6 {[%emt 0:00:14]} 3. e3 {[%emt 0:02:58]} c5 {[%emt 0:00:55]} 4. Nf3 {[%emt 0:01:14]} Nc6 {[%emt 0:00:21]} 5. c3 {[%emt 0:01:41]} d5 {[%emt 0:00:28]} 6. Nbd2 {[%emt 0:01:27]} Nh5 {[%emt 0:00:31]} 7. Bg5 {[%emt 0:01:41]} f6 {[%emt 0:00:21]} 8. Bh4 {[%emt 0:00:05]} g6 {[%emt 0:00:06]} 9. Be2 {[%emt 0:03:35]} Ng7 {[%emt 0:05:03]} 10. O-O {[%emt 0:03:53]} cxd4 {[%emt 0:01:34]} 11. exd4 {[%emt 0:00:17]} Be7 {[%emt 0:00:14]} 12. Re1 {[%emt 0:00:29]} O-O {[%emt 0:01:36]} 13. Bd3 {[%emt 0:00:22]} Bd7 {[%emt 0:02:41]} 14. Bg3 {[%emt 0:00:26]} Rc8 {[%emt 0:01:33]} 15. Rc1 {[%emt 0:00:36]} a6 {[%emt 0:06:43]} 16. a3 {[%emt 0:02:02]} b5 {[%emt 0:02:31]} 17. Qe2 {[%emt 0:00:32]} Qb6 {[%emt 0:02:04]} 18. b4 {[%emt 0:00:24]} Nd8 {[%emt 0:02:13]} 19. Nb3 {[%emt 0:00:55]} Nf7 {[%emt 0:03:14]} 20. Nc5 {[%emt 0:00:53]} Bxc5 {[%emt 0:00:31]} 21. dxc5 {[%emt 0:00:12]} Qb7 {[%emt 0:00:42]} 22. a4 {[%emt 0:01:18]} e5 {[%emt 0:03:38]} 23. axb5 {[%emt 0:00:33]} axb5 {[%emt 0:02:58]} 24. Bc2 {[%emt 0:00:53]} Ra8 {[%emt 0:09:41]} 25. Bb3 {[%emt 0:15:53]} Bc6 {[%emt 0:03:28]} 26. Red1 {[%emt 0:12:40]} Nf5 {[%emt 0:03:34]} 27. Rd2 {[%emt 0:00:52]} Ra3 {[%emt 0:03:28]} 28. Qd1 {[%emt 0:00:22]} Rd8 {[%emt 0:01:35]} 29. Qc2 {[%emt 0:04:55]} Kg7 {[%emt 0:07:30]} 30. Rcd1 {[%emt 0:02:23]} d4 {[%emt 0:03:46]} 31. cxd4 {[%emt 0:18:38]} Bxf3 {[%emt 0:00:19]} 32. dxe5 {[%emt 0:02:35]} Bxd1 {[%emt 0:08:58]} 33. exf6+ {[%emt 0:00:18]} Kf8 {[%emt 0:00:53]} 34. Rxd8+ {[%emt 0:00:49]} Nxd8 {[%emt 0:00:26]} 35. Qxd1 {[%emt 0:00:04]} Nf7 {[%emt 0:00:54]} 36. Bf4 {[%emt 0:01:39]} Qe4 {[%emt 0:05:22]} 37. g3 {[%emt 0:00:57]} Nd4 {[%emt 0:01:47]} 38. Bxf7 {[%emt 0:09:49]} Kxf7 {[%emt 0:02:05]} 39. c6 {[%emt 0:00:18]} Rd3 {[%emt 0:02:17]} 40. Qa1 {[%emt 0:00:23]} Nxc6 {[%emt 0:02:38]} 41. Qa2+ {[%emt 0:02:08]} Qd5 {[%emt 0:00:20]} 42. Qxd5+ {[%emt 0:01:08]} Rxd5 {[%emt 0:00:11]} 43. Kg2 {[%emt 0:00:01]} Nxb4 {[%emt 0:00:07]} 44. g4 {[%emt 0:00:04]} Kxf6 {[%emt 0:00:18]} 45. h4 {[%emt 0:00:01]} Kf7 {[%emt 0:00:10]} 46. g5 {[%emt 0:00:01]} Nd3 {[%emt 0:00:07]} 47. Be3 {[%emt 0:00:02]} b4 {[%emt 0:00:00]} 48. f4 {[%emt 0:00:12]} b3 {[%emt 0:00:04]} 49. Kf3 {[%emt 0:00:03]} b2 {[%emt 0:00:02]} 50. Ke4 {[%emt 0:00:05]} Nb4 {[%emt 0:00:08]} 51. Bb6 {[%emt 0:00:06]} b1=B+ {[%emt 0:00:11]} 52. Kf3 {[%emt 0:00:06]} 0-1

[Event "FIDE WCCC Open-08 2024"]
[Site "Montesilvano"]
[Date "2024.11.18"]
[Round "3.24"]
[White "Kiss, Lorinc Istvan"]
[Black "Ulan, Rizat"]
[Result "0-1"]
[ECO "B28"]
[WhiteElo "1501"]
[BlackElo "1783"]
[PlyCount "60"]
[EventDate "2024.11.18"]
[EventType "swiss"]
[EventCountry "ITA"]
[TimeControl "5400+30"]

1. e4 {[%emt 0:00:02]} c5 {[%emt 0:00:07]} 2. Nf3 {[%emt 0:01:33]} a6 {[%emt 0:00:11]} 3. d4 {[%emt 0:02:57]} cxd4 {[%emt 0:00:08]} 4. Nxd4 {[%emt 0:02:33]} Nf6 {[%emt 0:00:11]} 5. e5 {[%emt 0:02:26]} Qa5+ {[%emt 0:00:09]} 6. c3 {[%emt 0:02:56]} Qxe5+ {[%emt 0:00:10]} 7. Be2 {[%emt 0:01:06]} e6 {[%emt 0:03:58]} 8. Be3 {[%emt 0:01:35]} Be7 {[%emt 0:00:25]} 9. Nd2 {[%emt 0:01:06]} Nd5 {[%emt 0:02:49]} 10. N2f3 {[%emt 0:01:18]} Nxe3 {[%emt 0:00:16]} 11. fxe3 {[%emt 0:00:13]} Qxe3 12. Rc1 {[%emt 0:02:04]} O-O {[%emt 0:01:54]} 13. a3 {[%emt 0:02:15]} b6 {[%emt 0:02:50]} 14. c4 {[%emt 0:01:52]} Bc5 {[%emt 0:02:31]} 15. Rc3 {[%emt 0:01:00]} Qe4 {[%emt 0:00:06]} 16. O-O {[%emt 0:01:37]} e5 {[%emt 0:00:28]} 17. Rd3 {[%emt 0:07:33]} exd4 {[%emt 0:00:15]} 18. b4 {[%emt 0:00:36]} Be7 {[%emt 0:01:53]} 19. Rxd4 {[%emt 0:00:46]} Qe3+ {[%emt 0:00:07]} 20. Kh1 {[%emt 0:01:08]} Qxa3 {[%emt 0:02:39]} 21. Qb1 {[%emt 0:02:43]} Qxb4 {[%emt 0:01:49]} 22. Qe4 {[%emt 0:02:34]} Nc6 {[%emt 0:00:05]} 23. Bd3 {[%emt 0:01:27]} f5 {[%emt 0:00:19]} 24. Qd5+ {[%emt 0:00:38]} Kh8 {[%emt 0:00:03]} 25. Ne5 {[%emt 0:23:27]} Qc5 {[%emt 0:02:12]} 26. Nf7+ {[%emt 0:02:04]} Rxf7 {[%emt 0:00:06]} 27. Qxf7 {[%emt 0:00:23]} Nxd4 {[%emt 0:00:10]} 28. Qe8+ {[%emt 0:02:19]} Bf8 {[%emt 0:00:05]} 29. Be4 {[%emt 0:01:20]} Bb7 {[%emt 0:00:25]} 30. Qxd7 {[%emt 0:01:46]} Bxe4 {[%emt 0:00:07]} 0-1

[Event "FIDE WCCC Open-08 2024"]
[Site "Montesilvano"]
[Date "2024.11.18"]
[Round "3.25"]
[White "Mankovich, Yoav"]
[Black "Juzbasic, Marul"]
[Result "1-0"]
[ECO "C56"]
[WhiteElo "1490"]
[BlackElo "1726"]
[PlyCount "59"]
[EventDate "2024.11.18"]
[EventType "swiss"]
[EventCountry "ITA"]
[TimeControl "5400+30"]

1. e4 {[%emt 0:00:05]} e5 {[%emt 0:00:10]} 2. Nf3 {[%emt 0:00:09]} Nc6 {[%emt 0:00:07]} 3. Bc4 {[%emt 0:00:09]} Bc5 {[%emt 0:00:08]} 4. c3 {[%emt 0:00:13]} Nf6 {[%emt 0:00:10]} 5. d4 {[%emt 0:00:37]} exd4 {[%emt 0:00:15]} 6. O-O {[%emt 0:00:20]} d5 {[%emt 0:09:01]} 7. e5 {[%emt 0:20:54]} dxc4 {[%emt 0:07:06]} 8. exf6 {[%emt 0:00:49]} Qxf6 {[%emt 0:02:55]} 9. Re1+ {[%emt 0:00:36]} Be6 {[%emt 0:01:38]} 10. Bg5 {[%emt 0:00:57]} Qg6 {[%emt 0:03:38]} 11. cxd4 {[%emt 0:04:35]} Bb4 {[%emt 0:06:57]} 12. Re2 {[%emt 0:02:25]} Be7 {[%emt 0:04:42]} 13. Bxe7 {[%emt 0:03:13]} Nxe7 {[%emt 0:02:31]} 14. d5 {[%emt 0:07:52]} O-O-O {[%emt 0:03:46]} 15. Ne5 {[%emt 0:11:34]} Qf6 {[%emt 0:05:39]} 16. Nc3 {[%emt 0:07:32]} Nxd5 {[%emt 0:04:08]} 17. Qa4 {[%emt 0:03:11]} Nf4 {[%emt 0:03:35]} 18. Re4 {[%emt 0:02:53]} Rd2 {[%emt 0:03:20]} 19. Qxa7 {[%emt 0:01:12]} Kd8 {[%emt 0:07:55]} 20. Qe3 {[%emt 0:09:18]} Rxb2 {[%emt 0:11:56]} 21. Rxf4 {[%emt 0:00:36]} Qe7 {[%emt 0:02:37]} 22. Rd1+ {[%emt 0:00:15]} Ke8 {[%emt 0:02:20]} 23. Qa7 {[%emt 0:01:11]} Qd6 {[%emt 0:06:33]} 24. Rxd6 {[%emt 0:00:32]} cxd6 {[%emt 0:00:39]} 25. Qb8+ {[%emt 0:00:50]} Ke7 {[%emt 0:01:08]} 26. Qc7+ {[%emt 0:01:11]} Ke8 {[%emt 0:00:47]} 27. Nxc4 {[%emt 0:01:27]} Bxc4 {[%emt 0:03:31]} 28. Rxc4 {[%emt 0:00:42]} g6 {[%emt 0:00:59]} 29. Qc8+ {[%emt 0:00:22]} Ke7 {[%emt 0:00:23]} 30. Nd5# {[%emt 0:00:10]} 1-0

[Event "FIDE WCCC Open-08 2024"]
[Site "Montesilvano"]
[Date "2024.11.18"]
[Round "3.26"]
[White "Kuncoro, Leo"]
[Black "Ramirez Mejia, Jose Gregorio"]
[Result "1-0"]
[ECO "B23"]
[WhiteElo "1726"]
[BlackElo "1489"]
[PlyCount "85"]
[EventDate "2024.11.18"]
[EventType "swiss"]
[EventCountry "ITA"]
[TimeControl "5400+30"]

1. e4 {[%emt 0:00:02]} c5 {[%emt 0:00:37]} 2. Nc3 {[%emt 0:00:07]} Nc6 {[%emt 0:00:57]} 3. Bb5 {[%emt 0:00:27]} g6 {[%emt 0:01:54]} 4. Bxc6 {[%emt 0:00:16]} bxc6 5. d3 Bg7 {[%emt 0:02:38]} 6. f4 {[%emt 0:00:44]} e6 {[%emt 0:00:46]} 7. Nf3 {[%emt 0:00:24]} Ne7 {[%emt 0:02:13]} 8. O-O {[%emt 0:00:55]} O-O {[%emt 0:01:13]} 9. Qe1 {[%emt 0:00:14]} d5 {[%emt 0:01:54]} 10. Rb1 a5 {[%emt 0:04:20]} 11. b3 {[%emt 0:12:49]} Rb8 {[%emt 0:03:05]} 12. Na4 {[%emt 1:20:32]} dxe4 {[%emt 0:06:38]} 13. dxe4 {[%emt 0:00:00]} Ba6 {[%emt 0:03:40]} 14. Rf2 {[%emt 0:00:00]} c4 {[%emt 0:02:12]} 15. Bb2 {[%emt 0:00:00]} Bxb2 {[%emt 0:04:23]} 16. Nxb2 {[%emt 0:00:00]} cxb3 {[%emt 0:02:24]} 17. axb3 {[%emt 0:00:00]} Qb6 {[%emt 0:03:55]} 18. Kh1 {[%emt 0:00:00]} Rfd8 {[%emt 0:02:49]} 19. Rd2 {[%emt 0:00:00]} Rxd2 {[%emt 0:01:47]} 20. Qxd2 {[%emt 0:00:00]} Rd8 {[%emt 0:02:22]} 21. Qe1 {[%emt 0:00:00]} Qb4 {[%emt 0:02:39]} 22. Qxb4 {[%emt 0:00:00]} axb4 {[%emt 0:00:12]} 23. Rd1 {[%emt 0:00:00]} Ra8 {[%emt 0:01:27]} 24. Rd7 {[%emt 0:00:00]} Re8 {[%emt 0:01:45]} 25. Kg1 {[%emt 0:00:00]} Kg7 {[%emt 0:00:34]} 26. Kf2 {[%emt 0:00:00]} Kf6 {[%emt 0:00:30]} 27. g4 {[%emt 0:00:00]} h6 {[%emt 0:00:15]} 28. Ra7 {[%emt 0:00:00]} Bb5 {[%emt 0:00:09]} 29. h4 {[%emt 0:00:00]} Kg7 {[%emt 0:00:43]} 30. Nd3 {[%emt 0:00:00]} f5 {[%emt 0:00:17]} 31. exf5 {[%emt 0:00:00]} Bxd3 {[%emt 0:00:36]} 32. cxd3 {[%emt 0:00:00]} exf5 {[%emt 0:47:36]} 33. g5 {[%emt 0:00:00]} hxg5 {[%emt 0:00:00]} 34. hxg5 {[%emt 0:00:00]} Kf8 {[%emt 0:00:00]} 35. Ne5 {[%emt 0:00:00]} Rd8 {[%emt 0:00:00]} 36. Rxe7 {[%emt 0:00:00]} Kxe7 {[%emt 0:00:00]} 37. Nxc6+ {[%emt 0:00:00]} Kd7 {[%emt 0:00:00]} 38. Nxd8 {[%emt 0:00:00]} Kxd8 {[%emt 0:00:00]} 39. Ke3 {[%emt 0:00:00]} Kc7 {[%emt 0:03:30]} 40. Kd4 {[%emt 0:00:00]} Kb6 {[%emt 0:00:00]} 41. Kc4 {[%emt 0:00:00]} Ka5 {[%emt 0:00:00]} 42. Kc5 {[%emt 0:00:00]} Ka6 {[%emt 0:00:00]} 43. Kc6 {[%emt 0:00:00]} 1-0

[Event "FIDE WCCC Open-08 2024"]
[Site "Montesilvano"]
[Date "2024.11.18"]
[Round "3.27"]
[White "Vo, Daniel"]
[Black "Borkowski, Jan"]
[Result "1-0"]
[ECO "B82"]
[WhiteElo "1711"]
[BlackElo "1481"]
[PlyCount "107"]
[EventDate "2024.11.18"]
[EventType "swiss"]
[EventCountry "ITA"]
[TimeControl "5400+30"]

1. e4 {[%emt 0:00:02]} c5 {[%emt 0:00:10]} 2. Nf3 {[%emt 0:00:13]} e6 {[%emt 0:00:13]} 3. d4 {[%emt 0:00:09]} cxd4 {[%emt 0:00:05]} 4. Nxd4 {[%emt 0:00:31]} Nc6 {[%emt 0:00:07]} 5. Nc3 {[%emt 0:00:17]} Qc7 {[%emt 0:00:30]} 6. Ndb5 {[%emt 0:00:16]} Qb8 {[%emt 0:00:39]} 7. f4 {[%emt 0:00:18]} a6 {[%emt 0:01:30]} 8. Nd4 {[%emt 0:02:01]} d6 {[%emt 0:16:46]} 9. Be3 {[%emt 0:01:23]} Nf6 {[%emt 0:00:54]} 10. Qf3 {[%emt 0:00:33]} Qc7 {[%emt 0:09:53]} 11. Nxc6 {[%emt 0:02:47]} bxc6 {[%emt 0:02:08]} 12. O-O-O {[%emt 0:01:21]} Be7 {[%emt 0:01:02]} 13. Kb1 {[%emt 0:04:40]} Rb8 {[%emt 0:10:46]} 14. g4 {[%emt 0:02:12]} d5 {[%emt 0:23:36]} 15. exd5 {[%emt 0:11:23]} cxd5 {[%emt 0:01:03]} 16. Bc1 {[%emt 0:00:49]} d4 {[%emt 0:08:01]} 17. Ne4 {[%emt 0:07:00]} Nxe4 {[%emt 0:01:53]} 18. Qxe4 {[%emt 0:04:33]} Bb7 {[%emt 0:00:48]} 19. Qxd4 {[%emt 0:02:18]} Bxh1 {[%emt 0:01:22]} 20. Qxg7 {[%emt 0:00:48]} Rf8 {[%emt 0:01:05]} 21. Bxa6 {[%emt 0:02:27]} Bd5 {[%emt 0:02:11]} 22. b3 {[%emt 0:11:19]} Qc6 {[%emt 0:03:11]} 23. Bd3 {[%emt 0:02:44]} Be4 {[%emt 0:01:43]} 24. Qe5 {[%emt 0:00:45]} Rb4 {[%emt 0:01:49]} 25. Bc4 {[%emt 0:06:19]} Qb7 {[%emt 0:01:51]} 26. Bb2 {[%emt 0:02:22]} Rb6 {[%emt 0:01:56]} 27. f5 {[%emt 0:02:01]} Bf3 {[%emt 0:00:59]} 28. Rd4 {[%emt 0:02:43]} Qb8 {[%emt 0:00:23]} 29. Qe3 {[%emt 0:09:42]} Ba8 {[%emt 0:01:15]} 30. fxe6 {[%emt 0:01:36]} fxe6 {[%emt 0:02:31]} 31. Qh3 {[%emt 0:03:06]} Rd6 {[%emt 0:01:41]} 32. Qh5+ {[%emt 0:01:11]} Kd7 {[%emt 0:00:47]} 33. Bb5+ {[%emt 0:02:15]} Bc6 {[%emt 0:00:11]} 34. Rxd6+ {[%emt 0:09:47]} Qxd6 {[%emt 0:00:12]} 35. Bd3 {[%emt 0:00:41]} Bd5 {[%emt 0:00:42]} 36. Qxh7 {[%emt 0:00:31]} Ra8 {[%emt 0:00:25]} 37. g5 {[%emt 0:00:32]} Qf4 {[%emt 0:00:43]} 38. Bc1 {[%emt 0:01:23]} Qg4 {[%emt 0:00:26]} 39. Bb5+ {[%emt 0:00:39]} Kd6 {[%emt 0:00:26]} 40. a4 {[%emt 0:00:40]} Qf5 {[%emt 0:00:11]} 41. Ba3+ {[%emt 0:00:12]} Ke5 {[%emt 0:00:25]} 42. Qxe7 {[%emt 0:00:32]} Rc8 {[%emt 0:00:37]} 43. Qd6+ {[%emt 0:00:36]} Kd4 {[%emt 0:00:18]} 44. Qb6+ {[%emt 0:00:42]} Rc5 {[%emt 0:01:19]} 45. Qxc5+ {[%emt 0:00:08]} Ke5 {[%emt 0:00:06]} 46. Qd6+ {[%emt 0:00:08]} Kd4 {[%emt 0:00:10]} 47. Qb6+ {[%emt 0:00:14]} Ke5 {[%emt 0:00:16]} 48. Bd6+ {[%emt 0:00:08]} Ke4 {[%emt 0:00:06]} 49. Bd3+ {[%emt 0:00:07]} Kf3 {[%emt 0:00:09]} 50. Bxf5 {[%emt 0:00:10]} exf5 {[%emt 0:00:08]} 51. g6 {[%emt 0:00:09]} Kg2 {[%emt 0:00:06]} 52. g7 {[%emt 0:00:07]} Kh1 {[%emt 0:00:06]} 53. Qf2 {[%emt 0:00:17]} Bxb3 {[%emt 0:00:12]} 54. Qf1# {[%emt 0:07:43]} 1-0

[Event "FIDE WCCC Open-08 2024"]
[Site "Montesilvano"]
[Date "2024.11.18"]
[Round "3.28"]
[White "Saathvik Chakravarthy Ramayana"]
[Black "Guo, Philipp Ziming"]
[Result "0-1"]
[ECO "B22"]
[WhiteElo "1466"]
[BlackElo "2139"]
[PlyCount "112"]
[EventDate "2024.11.18"]
[EventType "swiss"]
[EventCountry "ITA"]
[TimeControl "5400+30"]

1. e4 {[%emt 0:00:07]} c5 {[%emt 0:00:04]} 2. c3 {[%emt 0:00:18]} d5 {[%emt 0:00:05]} 3. exd5 {[%emt 0:00:12]} Qxd5 {[%emt 0:00:06]} 4. d4 {[%emt 0:00:18]} Nf6 {[%emt 0:00:04]} 5. Nf3 {[%emt 0:00:15]} Bg4 {[%emt 0:00:04]} 6. Be2 {[%emt 0:03:20]} e6 {[%emt 0:00:04]} 7. h3 Bh5 8. Be3 {[%emt 0:01:32]} cxd4 {[%emt 0:00:38]} 9. cxd4 {[%emt 0:03:12]} Be7 {[%emt 0:00:02]} 10. Nc3 {[%emt 0:00:22]} Qa5 {[%emt 0:00:31]} 11. Rc1 {[%emt 0:07:39]} O-O {[%emt 0:00:25]} 12. O-O {[%emt 0:03:26]} Nc6 {[%emt 0:00:30]} 13. Qb3 {[%emt 0:02:50]} Qb4 {[%emt 0:03:03]} 14. Qxb4 {[%emt 0:07:07]} Nxb4 {[%emt 0:00:06]} 15. Bg5 {[%emt 0:05:57]} Rac8 {[%emt 0:02:07]} 16. a3 {[%emt 0:00:11]} Nbd5 {[%emt 0:00:11]} 17. Bxf6 {[%emt 0:06:28]} Nxf6 {[%emt 0:01:39]} 18. g4 {[%emt 0:07:22]} Bg6 {[%emt 0:00:26]} 19. Ne5 {[%emt 0:00:42]} Rfd8 {[%emt 0:00:57]} 20. Nxg6 {[%emt 0:02:05]} hxg6 {[%emt 0:00:22]} 21. Rfd1 {[%emt 0:00:12]} a6 {[%emt 0:00:41]} 22. Bf3 {[%emt 0:04:39]} Rc7 {[%emt 0:00:09]} 23. d5 {[%emt 0:04:12]} exd5 {[%emt 0:00:20]} 24. Bxd5 {[%emt 0:00:08]} Nxd5 {[%emt 0:00:19]} 25. Nxd5 {[%emt 0:10:42]} Rxd5 {[%emt 0:00:03]} 26. Rxc7 {[%emt 0:01:14]} Rxd1+ {[%emt 0:00:08]} 27. Kg2 {[%emt 0:00:03]} Bf6 {[%emt 0:00:10]} 28. Rxb7 {[%emt 0:00:17]} Rb1 {[%emt 0:00:28]} 29. b4 {[%emt 0:01:08]} Ra1 {[%emt 0:00:08]} 30. Ra7 {[%emt 0:02:18]} Rxa3 {[%emt 0:00:02]} 31. b5 {[%emt 0:00:09]} a5 {[%emt 0:00:01]} 32. b6 {[%emt 0:00:10]} Rb3 {[%emt 0:00:01]} 33. b7 {[%emt 0:01:14]} Kh7 {[%emt 0:00:05]} 34. Rxa5 {[%emt 0:02:34]} Rxb7 {[%emt 0:00:36]} 35. g5 {[%emt 0:01:09]} Bd4 {[%emt 0:00:03]} 36. Rd5 {[%emt 0:00:44]} Ba7 {[%emt 0:00:27]} 37. Ra5 {[%emt 0:02:14]} f6 {[%emt 0:00:46]} 38. gxf6 {[%emt 0:03:11]} gxf6 {[%emt 0:00:01]} 39. Ra6 {[%emt 0:00:52]} f5 {[%emt 0:00:05]} 40. Ra3 {[%emt 0:02:14]} Kh6 {[%emt 0:00:04]} 41. Kf3 {[%emt 0:04:33]} Kh5 {[%emt 0:00:09]} 42. Kg3 {[%emt 0:01:20]} g5 {[%emt 0:00:41]} 43. Rf3 {[%emt 0:03:04]} f4+ {[%emt 0:00:01]} 44. Kg2 {[%emt 0:00:17]} Rb2 {[%emt 0:00:01]} 45. Kg1 {[%emt 0:00:52]} Kh4 {[%emt 0:00:18]} 46. Kg2 {[%emt 0:00:09]} Bxf2 {[%emt 0:00:05]} 47. Rxf2 {[%emt 0:00:22]} Rxf2+ {[%emt 0:00:02]} 48. Kxf2 {[%emt 0:00:03]} Kxh3 {[%emt 0:00:10]} 49. Kf3 {[%emt 0:00:12]} g4+ {[%emt 0:00:04]} 50. Kf2 {[%emt 0:00:05]} f3 {[%emt 0:00:11]} 51. Kg1 {[%emt 0:00:05]} g3 {[%emt 0:00:13]} 52. Kh1 {[%emt 0:00:10]} g2+ {[%emt 0:00:12]} 53. Kg1 {[%emt 0:00:11]} Kg4 {[%emt 0:00:18]} 54. Kf2 {[%emt 0:00:07]} Kf4 {[%emt 0:00:03]} 55. Kg1 {[%emt 0:00:10]} Ke3 {[%emt 0:00:03]} 56. Kh2 {[%emt 0:00:17]} Kf2 {[%emt 0:00:05]} 0-1

[Event "FIDE WCCC Open-08 2024"]
[Site "Montesilvano"]
[Date "2024.11.18"]
[Round "3.29"]
[White "Sivan, Leeor"]
[Black "Su, Milo"]
[Result "0-1"]
[ECO "B45"]
[WhiteElo "1464"]
[BlackElo "1696"]
[PlyCount "34"]
[EventDate "2024.11.18"]
[EventType "swiss"]
[EventCountry "ITA"]
[TimeControl "5400+30"]

1. e4 {[%emt 0:00:37]} c5 {[%emt 0:00:04]} 2. Nf3 {[%emt 0:00:45]} Nc6 {[%emt 0:00:07]} 3. d4 {[%emt 0:01:19]} cxd4 {[%emt 0:00:06]} 4. Nxd4 {[%emt 0:00:43]} Nf6 {[%emt 0:00:08]} 5. Nc3 {[%emt 0:01:06]} e6 {[%emt 0:00:14]} 6. f3 {[%emt 0:03:02]} d5 {[%emt 0:01:20]} 7. Bb5 {[%emt 0:01:49]} Bd7 {[%emt 0:00:43]} 8. Bxc6 {[%emt 0:00:53]} Bxc6 {[%emt 0:00:48]} 9. Qd3 {[%emt 0:11:18]} Bc5 10. Be3 {[%emt 0:00:10]} Qb6 {[%emt 0:05:05]} 11. Rb1 {[%emt 0:02:08]} dxe4 {[%emt 0:01:33]} 12. fxe4 {[%emt 0:12:15]} O-O-O {[%emt 0:01:47]} 13. a4 {[%emt 0:11:31]} Bxd4 {[%emt 0:02:41]} 14. Bxd4 {[%emt 0:08:16]} Rxd4 {[%emt 0:01:00]} 15. Qf3 {[%emt 0:01:48]} Nxe4 {[%emt 0:01:47]} 16. Qh3 {[%emt 0:04:19]} Rhd8 {[%emt 0:05:04]} 17. Rf1 {[%emt 0:01:35]} Nxc3 {[%emt 0:00:30]} 0-1

[Event "FIDE WCCC Open-08 2024"]
[Site "Montesilvano"]
[Date "2024.11.18"]
[Round "3.30"]
[White "Bisetto, Alessandro Federico"]
[Black "Kim, Rian B"]
[Result "1-0"]
[ECO "B90"]
[WhiteElo "1671"]
[BlackElo "1452"]
[PlyCount "107"]
[EventDate "2024.11.18"]
[EventType "swiss"]
[EventCountry "ITA"]
[TimeControl "5400+30"]

1. e4 {[%emt 0:00:26]} c5 {[%emt 0:00:40]} 2. Nf3 d6 {[%emt 0:03:08]} 3. d4 {[%emt 0:01:43]} cxd4 {[%emt 0:00:58]} 4. Nxd4 {[%emt 0:00:41]} Nf6 {[%emt 0:01:05]} 5. Nc3 {[%emt 0:01:24]} a6 {[%emt 0:01:27]} 6. Be3 {[%emt 0:00:52]} e5 {[%emt 0:02:18]} 7. Nb3 {[%emt 0:01:03]} Ng4 {[%emt 0:02:52]} 8. Bc4 {[%emt 0:13:26]} Nxe3 {[%emt 0:01:49]} 9. fxe3 {[%emt 0:00:17]} Be7 {[%emt 0:00:35]} 10. O-O {[%emt 0:14:25]} O-O {[%emt 0:01:48]} 11. Nd5 {[%emt 0:15:20]} Nc6 {[%emt 0:04:06]} 12. Nxe7+ {[%emt 0:07:47]} Nxe7 {[%emt 0:01:46]} 13. Qd2 {[%emt 0:08:53]} b5 {[%emt 0:01:11]} 14. Be2 {[%emt 0:00:45]} Bb7 {[%emt 0:01:27]} 15. Bf3 {[%emt 0:00:27]} Ng6 {[%emt 0:03:11]} 16. Rfd1 {[%emt 0:00:52]} Qb6 {[%emt 0:01:32]} 17. Kf2 {[%emt 0:16:29]} Rfd8 {[%emt 0:02:01]} 18. Qa5 {[%emt 0:02:05]} Qa7 {[%emt 0:04:30]} 19. Rd2 {[%emt 0:01:05]} Nh4 {[%emt 0:01:09]} 20. Rad1 {[%emt 0:00:30]} Qb8 {[%emt 0:02:29]} 21. Qb6 {[%emt 0:01:32]} Nxf3 {[%emt 1:00:58]} 22. gxf3 {[%emt 0:00:14]} Rc8 {[%emt 0:00:00]} 23. Rxd6 {[%emt 0:00:57]} Rxc2+ {[%emt 0:00:00]} 24. Kg1 {[%emt 0:00:18]} Rc8 {[%emt 0:01:30]} 25. Na5 {[%emt 0:00:23]} Bc6 {[%emt 0:00:30]} 26. Qxb8 {[%emt 0:02:27]} Raxb8 {[%emt 0:00:30]} 27. Nxc6 {[%emt 0:01:29]} f6 {[%emt 0:00:00]} 28. Nxb8 {[%emt 0:00:08]} Rxb8 {[%emt 0:00:00]} 29. Rd8+ {[%emt 0:00:08]} Rxd8 {[%emt 0:00:00]} 30. Rxd8+ {[%emt 0:00:13]} Kf7 {[%emt 0:00:00]} 31. Ra8 {[%emt 0:00:12]} Ke7 {[%emt 0:00:00]} 32. Rxa6 {[%emt 0:09:59]} b4 {[%emt 0:00:00]} 33. Rb6 {[%emt 0:00:00]} b3 {[%emt 0:00:00]} 34. Rxb3 {[%emt 0:00:00]} Kd6 {[%emt 0:00:00]} 35. Rc3 {[%emt 0:00:00]} g6 {[%emt 0:04:30]} 36. a4 {[%emt 0:02:00]} f5 {[%emt 0:00:00]} 37. exf5 {[%emt 0:00:00]} gxf5 {[%emt 0:00:00]} 38. a5 {[%emt 0:00:00]} h6 {[%emt 0:00:00]} 39. a6 {[%emt 0:00:00]} Kd7 {[%emt 0:00:00]} 40. a7 {[%emt 0:00:30]} Ke7 {[%emt 0:00:00]} 41. b4 {[%emt 0:00:36]} Kd7 {[%emt 0:00:00]} 42. b5 {[%emt 0:00:41]} e4 {[%emt 0:00:00]} 43. a8=Q {[%emt 0:00:20]} exf3 {[%emt 0:00:00]} 44. Qxf3 {[%emt 0:00:13]} Ke6 {[%emt 0:00:00]} 45. b6 {[%emt 0:00:07]} h5 {[%emt 0:00:00]} 46. Rc6+ {[%emt 0:01:09]} Ke7 {[%emt 0:00:00]} 47. Rc7+ {[%emt 0:00:29]} Ke6 {[%emt 0:00:00]} 48. Qc6+ {[%emt 0:00:24]} Ke5 {[%emt 0:00:00]} 49. Qe8+ {[%emt 0:00:04]} Kd5 {[%emt 0:00:00]} 50. Qd8+ {[%emt 0:00:10]} Ke5 {[%emt 0:00:00]} 51. Re7+ {[%emt 0:00:06]} Kf6 {[%emt 0:00:00]} 52. Qf8+ {[%emt 0:00:08]} Kg5 {[%emt 0:00:00]} 53. Qg7+ {[%emt 0:00:14]} Kh4 {[%emt 0:00:00]} 54. Qg3# {[%emt 0:00:04]} 1-0